bitfinex/quotes_BTCUSD_20250513
["timestamp","ask_amount","ask_price","bid_price","bid_amount"]
[1747157277644,0.20419507,103860.0,103850.0,0.6386239]
[1747157278202,0.22769507,103860.0,103850.0,0.09363472]
[1747157278433,0.24969507,103860.0,103850.0,0.36487472]
[1747157278851,0.24969507,103860.0,103850.0,0.09363472]
[1747157279107,0.34700447,103860.0,103850.0,0.02123909]
[1747157279330,0.20221453,103850.0,103840.0,0.87848]
[1747157279546,0.24601453,103850.0,103840.0,0.34]
[1747157280176,0.34332393,103850.0,103840.0,0.34]
[1747157280451,0.34332393,103850.0,103840.0,0.03962687]
[1747157280687,0.43868878,103850.0,103840.0,0.00148432]
[1747157280907,0.63021396,103850.0,103840.0,0.00148432]
[1747157281114,0.35786478,103850.0,103840.0,0.00148432]
[1747157281324,0.63021396,103850.0,103840.0,0.00148432]
[1747157282163,0.64113396,103850.0,103840.0,0.00148432]
[1747157282380,0.73744336,103850.0,103840.0,0.00148432]
[1747157282598,0.73744336,103850.0,103840.0,0.00048432]
[1747157282788,0.74244336,103850.0,103840.0,0.00048432]
[1747157283003,0.74544336,103850.0,103840.0,0.00048432]
[1747157283237,0.74544336,103850.0,103840.0,0.00167932]
[1747157283466,0.63521396,103850.0,103840.0,0.00048432]
[1747157283700,0.64513396,103850.0,103840.0,0.00048432]
[1747157283925,0.64513396,103850.0,103840.0,0.0016863]
[1747157284612,0.65993846,103850.0,103840.0,0.0016863]
[1747157284874,0.21190455,103820.0,103810.0,0.03990844]
[1747157285108,0.33201395,103820.0,103810.0,0.24234083]
[1747157285319,0.02889541,103820.0,103810.0,0.52627949]
[1747157285536,0.03852746,103820.0,103810.0,0.52627949]
[1747157285752,0.01926345,103820.0,103810.0,0.26356264]
[1747157285962,0.02889541,103820.0,103810.0,0.26456264]
[1747157286186,0.01926345,103820.0,103810.0,0.26456264]
[1747157286411,0.24272613,103820.0,103810.0,0.21406528]
[1747157286655,0.22153586,103820.0,103810.0,0.22369807]
[1747157286921,0.22153586,103820.0,103810.0,0.24296338]
[1747157287365,0.22153586,103820.0,103810.0,0.24296291]
[1747157287597,0.23116791,103820.0,103810.0,0.2333304]
[1747157287811,0.2215366,103820.0,103810.0,0.22369779]
[1747157288633,0.2215366,103820.0,103810.0,0.2618683]
[1747157289034,0.2215366,103820.0,103810.0,0.27150091]
[1747157289241,0.2215366,103820.0,103810.0,0.61150091]
[1747157289658,0.2215366,103820.0,103810.0,0.62113342]
[1747157289864,0.2215366,103820.0,103810.0,0.8934826]
[1747157290620,0.2215366,103820.0,103810.0,0.61150091]
[1747157291029,0.01926345,103820.0,103810.0,0.89348242]
[1747157291264,0.22153651,103820.0,103810.0,0.88385009]
[1747157291469,0.02889476,103820.0,103810.0,0.91638242]
[1747157291705,0.03852672,103820.0,103810.0,0.91638251]
[1747157291916,0.0192629,103820.0,103810.0,0.90674962]
[1747157292129,0.02889476,103820.0,103810.0,0.91638195]
[1747157292345,0.03852672,103820.0,103810.0,0.91638195]
[1747157292808,0.02889476,103820.0,103810.0,0.91638195]
[1747157293034,0.03852672,103820.0,103810.0,0.88384962]
[1747157293282,0.03852672,103820.0,103810.0,0.61150044]
[1747157293494,0.04815877,103820.0,103810.0,0.61150044]
[1747157293921,0.03852672,103820.0,103810.0,0.61150044]
[1747157294147,0.03852672,103820.0,103810.0,0.62113277]
[1747157295243,0.0192629,103820.0,103810.0,0.62113277]
[1747157295469,0.02889476,103820.0,103810.0,0.62113277]
[1747157295679,0.03852672,103820.0,103810.0,0.62113277]
[1747157296309,0.04815877,103820.0,103810.0,0.61150044]
[1747157296978,0.24079987,103820.0,103810.0,0.61150044]
[1747157297653,0.03852672,103820.0,103810.0,0.62113277]
[1747157298476,0.24079987,103820.0,103810.0,0.61150044]
[1747157299501,0.04815877,103820.0,103810.0,0.62113277]
[1747157299707,0.24079987,103820.0,103810.0,0.62113277]
[1747157299935,0.24079987,103820.0,103810.0,0.61150044]
[1747157300404,0.0192629,103820.0,103810.0,0.61150044]
[1747157300660,0.02889458,103820.0,103810.0,0.91648195]
[1747157300904,0.00963131,103820.0,103810.0,0.91648195]
[1747157301113,0.24463212,103830.0,103820.0,0.55190474]
[1747157301354,0.24463212,103830.0,103820.0,0.54227306]
[1747157301575,0.23500137,103830.0,103820.0,0.55190492]
[1747157302072,0.22537034,103830.0,103820.0,0.55190492]
[1747157302321,0.22737034,103830.0,103820.0,0.54227306]
[1747157302543,0.21773922,103830.0,103820.0,0.54227306]
[1747157302978,0.21773922,103830.0,103820.0,0.55190492]
[1747157303387,0.21773922,103830.0,103820.0,0.54227306]
[1747157303598,0.21773922,103830.0,103820.0,0.54227296]
[1747157303724,0.21773922,103830.0,103820.0,0.5326411]
[1747157303956,0.21773922,103830.0,103820.0,0.54227315]
[1747157304820,0.23903922,103830.0,103820.0,0.5326411]
[1747157306270,0.23903922,103830.0,103820.0,0.54227315]
[1747157306833,0.23903922,103830.0,103820.0,0.55190511]
[1747157307047,0.23903922,103830.0,103820.0,0.5326411]
[1747157308517,0.23903922,103830.0,103820.0,0.54227315]
[1747157308731,0.21773922,103830.0,103820.0,0.55190501]
[1747157308935,0.21773922,103830.0,103820.0,0.54227315]
[1747157309135,0.21773922,103830.0,103820.0,0.5326411]
[1747157309941,0.24063922,103830.0,103820.0,0.5326411]
[1747157312231,0.24063922,103830.0,103820.0,0.34]
[1747157316108,0.33794862,103830.0,103820.0,0.34]
[1747157318439,0.33794862,103830.0,103810.0,0.03831026]
[1747157318668,0.30199082,103820.0,103810.0,0.00013975]
[1747157318886,0.34578236,103820.0,103810.0,0.00013975]
[1747157319816,0.34578236,103820.0,103810.0,0.00113975]
[1747157320045,0.63267239,103820.0,103810.0,0.00113975]
[1747157320429,0.72998179,103820.0,103810.0,0.00113975]
[1747157321103,0.63267239,103820.0,103810.0,0.00113975]
[1747157321308,0.36032321,103820.0,103810.0,0.00113975]
[1747157321947,0.36332321,103820.0,103810.0,0.00013975]
[1747157322385,0.36632321,103820.0,103810.0,0.00013975]
[1747157324145,0.63867239,103820.0,103810.0,0.00013975]
[1747157324352,0.73598179,103820.0,103810.0,0.00013975]
[1747157324682,0.46363261,103820.0,103810.0,0.00013975]
[1747157324913,0.36632321,103820.0,103810.0,0.00013975]
[1747157327580,0.35178236,103820.0,103810.0,0.00013975]
[1747157329531,0.63867239,103820.0,103810.0,0.00013975]
[1747157333655,0.35178236,103820.0,103810.0,0.00013975]
[1747157333963,0.22753678,103820.0,103810.0,0.19279941]
[1747157334188,0.02526308,103820.0,103810.0,0.60619724]
[1747157334410,0.03489439,103820.0,103810.0,1.12858642]
[1747157334624,0.04452625,103820.0,103810.0,1.12858642]
[1747157334845,0.05415821,103820.0,103810.0,1.12858642]
[1747157335055,0.24680014,103820.0,103810.0,0.85623751]
[1747157335448,0.23416865,103820.0,103810.0,0.85623751]
[1747157335600,0.23116865,103820.0,103810.0,0.85623751]
[1747157335803,0.23116865,103820.0,103810.0,0.824505]
[1747157336027,0.22353697,103820.0,103810.0,0.83413761]
[1747157336727,0.21390511,103820.0,103810.0,0.824505]
[1747157336939,0.1946411,103820.0,103810.0,0.78283941]
[1747157337337,0.1946411,103820.0,103810.0,0.7924723]
[1747157337534,0.1946411,103820.0,103810.0,0.80210509]
[1747157337731,0.1946411,103820.0,103810.0,0.7924723]
[1747157337937,0.22084922,103820.0,103810.0,0.59017975]
[1747157338141,0.2184411,103820.0,103810.0,0.59017975]
[1747157339186,0.2403411,103820.0,103810.0,0.59017975]
[1747157339769,0.2403411,103820.0,103810.0,0.34013975]
[1747157340951,0.2184411,103820.0,103810.0,0.34013975]
[1747157341168,0.22353522,103820.0,103810.0,0.57516491]
[1747157341386,0.21390455,103820.0,103810.0,0.57516509]
[1747157341615,0.20427296,103820.0,103810.0,0.57516509]
[1747157341834,0.01163159,103820.0,103810.0,0.61613003]
[1747157342096,0.01163159,103820.0,103810.0,0.88847939]
[1747157342097,0.23316791,103820.0,103810.0,0.88847939]
[1747157342318,0.23316791,103820.0,103810.0,0.87884688]
[1747157342548,0.23316791,103820.0,103810.0,0.88847939]
[1747157342725,0.23316791,103820.0,103810.0,0.61613021]
[1747157343416,0.23316791,103820.0,103810.0,0.6064977]
[1747157343638,0.03089476,103820.0,103810.0,0.6064977]
[1747157343889,0.23316782,103820.0,103810.0,0.6064977]
[1747157344107,0.22353651,103820.0,103810.0,0.6064977]
[1747157344328,0.22353651,103820.0,103810.0,0.5847977]
[1747157344764,0.23316856,103820.0,103810.0,0.5847977]
[1747157344942,0.23316856,103820.0,103810.0,0.57516509]
[1747157346050,0.22353697,103820.0,103810.0,0.57516509]
[1747157346916,0.22353697,103820.0,103810.0,0.88937921]
[1747157346917,0.01163131,103820.0,103810.0,0.88937921]
[1747157347121,0.03089439,103820.0,103810.0,0.88937921]
[1747157347896,0.0308942,103820.0,103810.0,1.16937921]
[1747157348529,0.04052579,103820.0,103810.0,0.87443003]
[1747157349146,0.05015756,103820.0,103810.0,0.87443003]
[1747157349362,0.04052579,103820.0,103810.0,0.87443003]
[1747157349575,0.05015765,103820.0,103810.0,0.87443003]
[1747157349969,0.05015756,103820.0,103810.0,0.8647977]
[1747157350185,0.05015821,103820.0,103810.0,0.85133012]
[1747157350391,0.05015821,103820.0,103810.0,0.86096245]
[1747157350691,0.04052625,103820.0,103810.0,0.88236245]
[1747157350932,0.05015867,103820.0,103810.0,0.88236245]
[1747157351412,0.04052718,103820.0,103810.0,0.88236245]
[1747157352706,0.01163131,103820.0,103810.0,1.15471163]
[1747157352898,0.01163131,103820.0,103810.0,1.17601163]
[1747157352899,0.04052625,103820.0,103810.0,1.17601163]
[1747157353899,0.03089439,103820.0,103810.0,1.17601163]
[1747157354191,0.04052625,103820.0,103810.0,1.17601163]
[1747157354611,0.05015821,103820.0,103810.0,1.17601163]
[1747157355430,0.26619931,103820.0,103810.0,0.81279941]
[1747157355644,0.26070492,103820.0,103810.0,1.0656323]
[1747157355853,0.26070492,103820.0,103810.0,1.07526509]
[1747157356108,0.26070492,103820.0,103810.0,1.08489779]
[1747157356465,0.26070492,103820.0,103810.0,1.06563239]
[1747157356674,0.26070492,103820.0,103810.0,1.07526509]
[1747157356882,0.02126271,103820.0,103810.0,1.41007921]
[1747157357088,0.03089448,103820.0,103810.0,1.41007921]
[1747157357285,0.02126271,103820.0,103810.0,1.41007921]
[1747157357517,0.04052616,103820.0,103810.0,1.41007921]
[1747157357937,0.05015812,103820.0,103810.0,1.41007921]
[1747157358167,0.05015812,103820.0,103810.0,1.38837921]
[1747157358971,0.24279922,103820.0,103810.0,1.35724688]
[1747157359209,0.256068,103820.0,103810.0,1.09453012]
[1747157359415,0.0634269,103820.0,103810.0,1.09453012]
[1747157359567,0.0634269,103820.0,103810.0,1.10416245]
[1747157360406,0.26570005,103820.0,103810.0,1.09453012]
[1747157360615,0.0634269,103820.0,103810.0,1.09453012]
[1747157361481,0.256068,103820.0,103810.0,1.09453012]
[1747157361745,0.26570005,103820.0,103810.0,1.09453012]
[1747157362335,0.24280005,103820.0,103810.0,1.09453012]
[1747157362634,0.0405269,103820.0,103810.0,1.09453012]
[1747157362835,0.0405269,103820.0,103810.0,1.10416245]
[1747157363847,0.0405269,103820.0,103810.0,1.37651163]
[1747157364881,0.02126308,103820.0,103810.0,1.37651163]
[1747157365056,0.03089485,103820.0,103810.0,1.40001163]
[1747157365279,0.05015867,103820.0,103810.0,1.12766245]
[1747157365470,0.05015867,103820.0,103810.0,1.40001163]
[1747157366082,0.05015867,103820.0,103810.0,1.37651163]
[1747157368204,0.24279977,103820.0,103810.0,1.37651163]
[1747157368440,0.24280033,103820.0,103810.0,1.37651163]
[1747157369399,0.03089522,103820.0,103810.0,1.37651163]
[1747157369822,0.04052718,103820.0,103810.0,1.37651163]
[1747157370666,0.03089522,103820.0,103810.0,1.37651163]
[1747157371302,0.04052718,103820.0,103810.0,1.37651163]
[1747157371512,0.03089522,103820.0,103810.0,1.37651163]
[1747157371714,0.02126336,103820.0,103810.0,1.39791163]
[1747157371923,0.03089522,103820.0,103810.0,1.39791163]
[1747157372133,0.03089522,103820.0,103810.0,1.11791163]
[1747157372766,0.0212629,103820.0,103810.0,1.09651163]
[1747157373057,0.002,103820.0,103810.0,1.23782103]
[1747157373282,0.02126271,103820.0,103810.0,0.96547185]
[1747157373496,0.02126271,103820.0,103810.0,1.23782103]
[1747157373704,0.01163122,103820.0,103810.0,1.23782103]
[1747157373910,0.02126262,103820.0,103810.0,1.23782103]
[1747157374122,0.01163122,103820.0,103810.0,1.23782103]
[1747157374346,0.02126253,103820.0,103810.0,1.23782103]
[1747157374558,0.03089402,103820.0,103810.0,1.21522103]
[1747157374966,0.02126253,103820.0,103810.0,1.21522103]
[1747157375212,0.03089402,103820.0,103810.0,1.21522103]
[1747157377605,0.03089402,103820.0,103810.0,1.49522103]
[1747157377606,0.02126253,103820.0,103810.0,1.49522103]
[1747157377841,0.03089402,103820.0,103810.0,1.49522103]
[1747157378646,0.04052561,103820.0,103810.0,1.49522103]
[1747157379443,0.04052561,103820.0,103810.0,1.47382103]
[1747157379833,0.03089402,103820.0,103810.0,1.49532103]
[1747157380047,0.002,103820.0,103810.0,1.51792103]
[1747157380524,0.002,103820.0,103810.0,2.49019003]
[1747157380659,0.001,103820.0,103810.0,2.49019003]
[1747157380856,0.34210223,103850.0,103840.0,0.34]
[1747157381069,0.34210223,103850.0,103840.0,0.5422342]
[1747157381070,0.33247333,103850.0,103840.0,0.5422342]
[1747157381305,0.33247333,103850.0,103840.0,0.5518643]
[1747157382045,0.33547333,103850.0,103840.0,0.532604]
[1747157383243,0.33847333,103850.0,103840.0,0.532604]
[1747157383711,0.26134631,103850.0,103840.0,0.532604]
[1747157383975,0.26134631,103850.0,103840.0,0.5422342]
[1747157384390,0.25171732,103850.0,103840.0,0.5422342]
[1747157388256,0.25171732,103850.0,103840.0,0.55186421]
[1747157388489,0.25171732,103850.0,103840.0,0.5518643]
[1747157390675,0.25171732,103850.0,103840.0,0.56149431]
[1747157390866,0.25171732,103850.0,103840.0,0.5518643]
[1747157391947,0.05912862,103850.0,103840.0,1.07115285]
[1747157392212,0.04745742,103850.0,103840.0,1.07115285]
[1747157392388,0.03782862,103850.0,103840.0,1.07115285]
[1747157392592,0.0282,103850.0,103840.0,1.07115285]
[1747157392759,0.03782843,103850.0,103840.0,1.07115285]
[1747157393182,0.06671475,103850.0,103840.0,1.07115285]
[1747157393599,0.08981475,103850.0,103840.0,1.07115285]
[1747157393806,0.09944393,103850.0,103840.0,0.78917412]
[1747157394028,0.09944393,103850.0,103840.0,0.79880376]
[1747157394447,0.08981475,103850.0,103840.0,0.79880376]
[1747157395733,0.08981475,103850.0,103840.0,0.80843331]
[1747157395986,0.08923897,103850.0,103840.0,0.79880376]
[1747157396401,0.08923897,103850.0,103840.0,0.78917412]
[1747157396588,0.09886805,103850.0,103840.0,0.80843349]
[1747157397158,0.08923888,103850.0,103840.0,1.07115247]
[1747157397925,0.06998118,103850.0,103840.0,0.79644329]
[1747157398060,0.0892387,103850.0,103840.0,0.79644329]
[1747157398410,0.0892387,103850.0,103840.0,0.78681365]
[1747157398629,0.09886769,103850.0,103840.0,0.78681365]
[1747157398845,0.09886769,103850.0,103840.0,1.05916283]
[1747157399047,0.09886769,103850.0,103840.0,1.06879247]
[1747157399262,0.09886769,103850.0,103840.0,1.05916283]
[1747157399885,0.09886853,103850.0,103840.0,1.05916283]
[1747157400504,0.28182471,103850.0,103840.0,1.0495331]
[1747157400738,0.08923991,103850.0,103840.0,1.05916302]
[1747157400953,0.27219674,103850.0,103840.0,1.03990338]
[1747157401138,0.27219674,103850.0,103840.0,1.05916349]
[1747157401320,0.27219674,103850.0,103840.0,0.97564018]
[1747157401522,0.28182601,103850.0,103840.0,0.97564018]
[1747157401905,0.28182601,103850.0,103840.0,0.97564028]
[1747157402102,0.06035284,103850.0,103840.0,0.9852701]
[1747157402357,0.07961063,103850.0,103840.0,0.98526945]
[1747157402558,0.07961063,103850.0,103840.0,0.98526954]
[1747157402768,0.08923971,103850.0,103840.0,0.98526954]
[1747157403013,0.08923971,103850.0,103840.0,0.98526963]
[1747157403222,0.08923971,103850.0,103840.0,0.98526917]
[1747157403494,0.08923971,103850.0,103840.0,0.97563953]
[1747157403630,0.07961063,103850.0,103840.0,0.97563953]
[1747157403837,0.08923981,103850.0,103840.0,0.9660098]
[1747157404091,0.26256812,103850.0,103840.0,0.755484]
[1747157404439,0.26256812,103850.0,103840.0,0.7747443]
[1747157404871,0.26256812,103850.0,103840.0,0.78437431]
[1747157405118,0.26256812,103850.0,103840.0,0.7590543]
[1747157405355,0.26256812,103850.0,103840.0,0.76868431]
[1747157405599,0.26256812,103850.0,103840.0,0.32431]
[1747157407292,0.0435,103840.0,103830.0,0.45350556]
[1747157407503,0.06275993,103840.0,103830.0,0.44387499]
[1747157407707,0.06275956,103840.0,103830.0,0.44387499]
[1747157407921,0.07238901,103840.0,103830.0,0.45350546]
[1747157408157,0.06275918,103840.0,103830.0,0.6327016]
[1747157408362,0.0723891,103840.0,103830.0,0.6327016]
[1747157408576,0.0820193,103840.0,103830.0,0.62307113]
[1747157408771,0.0830193,103840.0,103830.0,0.63270179]
[1747157408926,0.0733891,103840.0,103830.0,0.64233236]
[1747157409142,0.0733891,103840.0,103830.0,0.98233189]
[1747157409143,0.0743891,103840.0,103830.0,0.98233189]
[1747157409862,0.2766232,103840.0,103830.0,0.54225367]
[1747157410043,0.25736402,103840.0,103830.0,0.76305367]
[1747157410246,0.06475956,103840.0,103830.0,0.56151536]
[1747157410472,0.06475956,103840.0,103830.0,0.78243536]
[1747157410647,0.07438966,103840.0,103830.0,0.79206593]
[1747157410967,0.07438966,103840.0,103830.0,0.79206611]
[1747157411193,0.27662386,103840.0,103830.0,0.78243545]
[1747157411396,0.26699422,103840.0,103830.0,0.77280461]
[1747157411582,0.26699422,103840.0,103830.0,0.79206611]
[1747157411787,0.26699422,103840.0,103830.0,0.7920662]
[1747157412359,0.26699422,103840.0,103830.0,0.78243545]
[1747157412558,0.06476002,103840.0,103830.0,0.80169667]
[1747157412839,0.06476002,103840.0,103830.0,0.98089282]
[1747157413047,0.06475956,103840.0,103830.0,0.98089217]
[1747157413214,0.08401967,103840.0,103830.0,0.9712617]
[1747157414161,0.30428418,103840.0,103830.0,0.55188433]
[1747157414438,0.07438966,103840.0,103830.0,0.74071095]
[1747157414660,0.27662386,103840.0,103830.0,0.75034179]
[1747157414924,0.27662386,103840.0,103830.0,0.57114574]
[1747157415361,0.26699422,103840.0,103830.0,0.75034179]
[1747157415504,0.05512964,103840.0,103830.0,0.58077631]
[1747157415720,0.0231,103840.0,103830.0,0.75997189]
[1747157415920,0.01162936,103840.0,103830.0,0.75997189]
[1747157416214,0.002,103840.0,103830.0,0.75997189]
[1747157416759,0.002,103840.0,103830.0,0.78237189]
[1747157417368,0.002,103840.0,103830.0,0.75997189]
[1747157418389,0.002,103840.0,103830.0,0.85728129]
[1747157418600,0.002,103840.0,103830.0,0.87948129]
[1747157419244,0.002,103840.0,103830.0,0.85728129]
[1747157419462,0.0246,103840.0,103830.0,0.85728129]
[1747157419684,0.03422936,103840.0,103830.0,0.85728129]
[1747157419890,0.002,103840.0,103830.0,0.69898524]
[1747157420102,0.002,103840.0,103830.0,1.15818129]
[1747157420554,0.002,103840.0,103830.0,1.38106129]
[1747157422123,0.002,103840.0,103830.0,1.18096524]
[1747157422336,0.0242,103840.0,103830.0,1.18096524]
[1747157422568,0.0242,103840.0,103830.0,1.36016129]
[1747157423174,0.0469,103840.0,103830.0,1.36016129]
[1747157424757,0.06615918,103840.0,103830.0,1.08365584]
[1747157424984,0.06615918,103840.0,103830.0,1.30245584]
[1747157425187,0.07578919,103840.0,103830.0,1.08365584]
[1747157425402,0.066159,103840.0,103830.0,1.07957584]
[1747157425629,0.07578873,103840.0,103830.0,1.07957584]
[1747157425834,0.08541855,103840.0,103830.0,1.25877189]
[1747157426063,0.09504847,103840.0,103830.0,1.25877189]
[1747157426633,0.08541855,103840.0,103830.0,1.25877189]
[1747157426843,0.09504856,103840.0,103830.0,1.25877189]
[1747157427648,0.28765321,103840.0,103830.0,1.25877189]
[1747157427850,0.09504921,103840.0,103830.0,1.25877189]
[1747157428564,0.09504986,103840.0,103830.0,1.25877189]
[1747157428774,0.28765386,103840.0,103830.0,1.07957584]
[1747157429605,0.08542013,103840.0,103830.0,1.0603148]
[1747157429822,0.08542013,103840.0,103830.0,1.06994537]
[1747157430317,0.2587643,103840.0,103830.0,1.05068461]
[1747157430526,0.2587643,103840.0,103830.0,1.23951132]
[1747157430733,0.05652982,103840.0,103830.0,1.24914179]
[1747157430899,0.07578947,103840.0,103830.0,1.24914179]
[1747157431119,0.26839347,103840.0,103830.0,1.24914179]
[1747157431331,0.27802367,103840.0,103830.0,1.24914179]
[1747157431535,0.03382955,103840.0,103830.0,1.24914179]
[1747157431750,0.04345937,103840.0,103830.0,1.24914179]
[1747157431953,0.03382955,103840.0,103830.0,1.24914179]
[1747157432160,0.04345928,103840.0,103830.0,1.24914179]
[1747157432365,0.002,103840.0,103830.0,1.54924724]
[1747157432569,0.002,103840.0,103830.0,1.57124724]
[1747157433243,0.002,103840.0,103830.0,1.35244724]
[1747157433460,0.00962751,103860.0,103850.0,0.2214715]
[1747157433699,0.03272751,103860.0,103850.0,0.62354755]
[1747157433932,0.05198298,103860.0,103850.0,0.62354755]
[1747157434168,0.07428298,103860.0,103850.0,0.62354755]
[1747157434651,0.07428298,103860.0,103850.0,0.6236873]
[1747157434876,0.07428298,103860.0,103850.0,0.6246873]
[1747157435306,0.08391086,103860.0,103850.0,0.71945996]
[1747157435525,0.07428335,103860.0,103850.0,0.70983143]
[1747157436010,0.08391141,103860.0,103850.0,0.70983143]
[1747157436936,0.08391141,103860.0,103850.0,0.48695143]
[1747157437403,0.09353957,103860.0,103850.0,0.70571143]
[1747157437620,0.09354013,103860.0,103850.0,0.70571143]
[1747157438934,0.08391188,103860.0,103850.0,0.70571143]
[1747157439104,0.07428372,103860.0,103850.0,0.70571143]
[1747157439300,0.08391188,103860.0,103850.0,0.70571143]
[1747157439656,0.09354069,103860.0,103850.0,0.71534079]
[1747157439860,0.26685166,103860.0,103850.0,0.4134852]
[1747157440278,0.26685166,103860.0,103850.0,0.43274355]
[1747157441460,0.26685166,103860.0,103850.0,0.45200134]
[1747157441641,0.26685166,103860.0,103850.0,0.72497005]
[1747157441879,0.26685166,103860.0,103850.0,0.73459876]
[1747157442839,0.0231,103860.0,103850.0,0.83190751]
[1747157443060,0.00962612,103880.0,103870.0,0.22142978]
[1747157443061,0.25253542,103880.0,103870.0,0.22142978]
[1747157443300,0.2759344,103880.0,103870.0,0.82477163]
[1747157443615,0.27593505,103880.0,103870.0,0.56142987]
[1747157443771,0.27593505,103880.0,103870.0,0.83439858]
[1747157444182,0.25668272,103880.0,103870.0,0.54217578]
[1747157444387,0.26168272,103880.0,103870.0,0.55180301]
[1747157445181,0.26168272,103880.0,103870.0,0.56143015]
[1747157445370,0.26168272,103880.0,103870.0,0.59503897]
[1747157447241,0.25205633,103880.0,103870.0,0.37360882]
[1747157447449,0.25205633,103880.0,103870.0,0.59228882]
[1747157447649,0.25205633,103880.0,103870.0,0.37360882]
[1747157455595,0.25205633,103880.0,103870.0,0.03360882]
[1747157455990,0.2478756,103870.0,103860.0,0.54219525]
[1747157456415,0.2478756,103870.0,103860.0,0.34]
[1747157456557,0.2478756,103870.0,103860.0,0.54219525]
[1747157456776,0.59797133,103870.0,103860.0,0.34]
[1747157456999,0.24739507,103860.0,103850.0,0.00013975]
[1747157457203,0.61767318,103860.0,103850.0,0.00013975]
[1747157457855,0.34470447,103860.0,103850.0,0.00013975]
[1747157458051,0.34470447,103860.0,103850.0,0.00113975]
[1747157458210,0.34470447,103860.0,103850.0,0.00013975]
[1747157458614,0.34670447,103860.0,103850.0,0.00013975]
[1747157459592,0.34870447,103860.0,103850.0,0.00013975]
[1747157461205,0.34870447,103860.0,103850.0,0.00389199]
[1747157461442,0.25139507,103860.0,103850.0,0.00389199]
[1747157462362,0.29578941,103860.0,103850.0,0.00389199]
[1747157462589,0.25139507,103860.0,103850.0,0.00389199]
[1747157475587,0.34870447,103860.0,103850.0,0.00389199]
[1747157476979,0.56730447,103860.0,103850.0,0.00389199]
[1747157477423,0.57693253,103860.0,103850.0,0.00389199]
[1747157477648,0.56730447,103860.0,103850.0,0.00389199]
[1747157480890,0.25139507,103860.0,103850.0,0.53647744]
[1747157481341,0.03288364,103860.0,103850.0,0.83833265]
[1747157481549,0.24470667,103860.0,103850.0,0.83833274]
[1747157481882,0.23507907,103860.0,103850.0,0.55573532]
[1747157482063,0.23507907,103860.0,103850.0,0.55573542]
[1747157482259,0.24705129,103860.0,103850.0,0.55573551]
[1747157482540,0.24705129,103860.0,103850.0,0.56536441]
[1747157482972,0.24705129,103860.0,103850.0,0.55573551]
[1747157484676,0.24705129,103860.0,103850.0,0.56536441]
[1747157484896,0.24705129,103860.0,103850.0,0.55573551]
[1747157486574,0.24705129,103860.0,103850.0,0.54610652]
[1747157486778,0.26905129,103860.0,103850.0,0.54610652]
[1747157486985,0.26905129,103860.0,103850.0,0.55573551]
[1747157487401,0.26905129,103860.0,103850.0,0.54610652]
[1747157487647,0.24705129,103860.0,103850.0,0.55573532]
[1747157487867,0.24705129,103860.0,103850.0,0.54610652]
[1747157488071,0.24705129,103860.0,103850.0,0.55573551]
[1747157489142,0.24705129,103860.0,103850.0,0.5553675]
[1747157489763,0.24705129,103860.0,103850.0,0.54573851]
[1747157489968,0.24705129,103860.0,103850.0,0.5553675]
[1747157490625,0.0136276,103860.0,103850.0,0.56499621]
[1747157490838,0.01362751,103860.0,103850.0,0.87069354]
[1747157491063,0.01362769,103860.0,103850.0,1.11097354]
[1747157491981,0.01162769,103860.0,103850.0,1.11097354]
[1747157492666,0.00962769,103860.0,103850.0,1.11097354]
[1747157492877,0.00962769,103860.0,103850.0,1.11197354]
[1747157493259,0.01925557,103860.0,103850.0,1.09017354]
[1747157493467,0.01925547,103860.0,103850.0,1.09017354]
[1747157494111,0.02888344,103860.0,103850.0,1.09017354]
[1747157494316,0.02888335,103860.0,103850.0,1.09017354]
[1747157494704,0.01925547,103860.0,103850.0,1.09017354]
[1747157494915,0.00962769,103860.0,103850.0,1.09017354]
[1747157496101,0.00962769,103860.0,103850.0,1.06707354]
[1747157496245,0.01925557,103860.0,103850.0,1.06707354]
[1747157497092,0.00962769,103860.0,103850.0,1.06707354]
[1747157498334,0.01925557,103860.0,103850.0,1.06707354]
[1747157498763,0.00962769,103860.0,103850.0,1.06707354]
[1747157499022,0.01925547,103860.0,103850.0,1.06707354]
[1747157499188,0.01925547,103860.0,103850.0,1.08817354]
[1747157499838,0.02888353,103860.0,103850.0,1.08817354]
[1747157500025,0.02888344,103860.0,103850.0,1.08817354]
[1747157500214,0.0385116,103860.0,103850.0,1.06707354]
[1747157500582,0.02888344,103860.0,103850.0,1.06707354]
[1747157501447,0.07133966,103860.0,103850.0,1.06707354]
[1747157501625,0.05208344,103860.0,103850.0,1.06707354]
[1747157502243,0.0617116,103860.0,103850.0,1.06707354]
[1747157502453,0.07133994,103860.0,103850.0,1.06707373]
[1747157502818,0.26775138,103860.0,103850.0,0.77464741]
[1747157503038,0.26775138,103860.0,103850.0,0.76501851]
[1747157503218,0.26775138,103860.0,103850.0,0.56280398]
[1747157503372,0.25812341,103860.0,103850.0,0.56280398]
[1747157504194,0.24849525,103860.0,103850.0,0.56280398]
[1747157505294,0.24849525,103860.0,103850.0,0.34452398]
[1747157506157,0.34580465,103860.0,103850.0,0.34452398]
[1747157506865,0.61877336,103860.0,103850.0,0.00452398]
[1747157507731,0.34580465,103860.0,103850.0,0.00352398]
[1747157507954,0.34780465,103860.0,103850.0,0.00352398]
[1747157508175,0.34580465,103860.0,103850.0,0.00352398]
[1747157508596,0.35080465,103860.0,103850.0,0.00352398]
[1747157509016,0.34880465,103860.0,103850.0,0.00352398]
[1747157509468,0.35280465,103860.0,103850.0,0.00452398]
[1747157510346,0.57116465,103860.0,103850.0,0.00452398]
[1747157511881,0.62061651,103860.0,103850.0,0.00452398]
[1747157512081,0.57116465,103860.0,103850.0,0.00452398]
[1747157514239,0.85867421,103860.0,103850.0,0.00452398]
[1747157514446,0.5857055,103860.0,103850.0,0.00452398]
[1747157514655,0.85867421,103860.0,103850.0,0.00452398]
[1747157515095,0.5857055,103860.0,103850.0,0.00452398]
[1747157515745,0.35280465,103860.0,103850.0,0.00452398]
[1747157524795,0.35259667,103860.0,103850.0,0.00452398]
[1747157525822,0.85798623,103860.0,103850.0,0.00452398]
[1747157527747,0.58501752,103860.0,103850.0,0.00452398]
[1747157527968,0.85798623,103860.0,103850.0,0.00452398]
[1747157528793,0.88234205,103860.0,103850.0,0.00452398]
[1747157529230,1.15531076,103860.0,103850.0,0.00452398]
[1747157529694,0.88234205,103860.0,103850.0,0.00452398]
[1747157530091,1.15531076,103860.0,103850.0,0.00452398]
[1747157530227,1.57131076,103860.0,103850.0,0.00466879]
[1747157530436,1.29834205,103860.0,103850.0,0.00466879]
[1747157530637,1.67854016,103860.0,103850.0,0.00466879]
[1747157530844,1.67862016,103860.0,103850.0,0.00466879]
[1747157531760,1.31826205,103860.0,103850.0,0.00466879]
[1747157532180,1.52606205,103860.0,103850.0,0.00466879]
[1747157532384,1.05610623,103860.0,103850.0,0.00466879]
[1747157532587,1.21869752,103860.0,103850.0,0.00466879]
[1747157532832,1.22869752,103860.0,103850.0,0.00466879]
[1747157533151,1.50166623,103860.0,103850.0,0.00466879]
[1747157533882,1.22869752,103860.0,103850.0,0.00466879]